bitfinex/quotes_SOLUSD_20251030
["timestamp","ask_amount","ask_price","bid_price","bid_amount"]
[1761835460598,20.592,187.75,187.68,11.38]
[1761835460786,3.0,187.78,187.69,10.45882769]
[1761835461169,3.0,187.78,187.69,0.67]
[1761835461369,3.0,187.78,187.69,10.45882769]
[1761835461769,20.592,187.77,187.69,10.45882769]
[1761835461996,20.592,187.77,187.7,0.67]
[1761835462192,13.9275503,187.77,187.7,0.67]
[1761835462399,13.9275503,187.77,187.71,11.38]
[1761835463195,13.9275503,187.77,187.66,0.67]
[1761835463371,13.9275503,187.77,187.67,11.38]
[1761835463771,13.9275503,187.77,187.67,12.05]
[1761835464193,20.592,187.75,187.67,11.38]
[1761835464881,20.592,187.75,187.65,0.67]
[1761835465085,20.592,187.75,187.67,9.78882769]
[1761835465290,3.0,187.78,187.68,11.38]
[1761835465676,3.0,187.78,187.68,12.05]
[1761835465880,3.0,187.78,187.68,0.67]
[1761835465881,20.592,187.75,187.68,0.67]
[1761835466081,20.592,187.74,187.69,11.4]
[1761835466270,20.592,187.74,187.69,11.38]
[1761835466792,20.592,187.73,187.68,11.38]
[1761835467296,24.84321586,187.75,187.69,0.67]
[1761835467499,24.84321586,187.75,187.68,11.38]
[1761835467684,20.592,187.73,187.66,0.67]
[1761835468002,24.84321586,187.75,187.67,11.38]
[1761835468588,50.8810043,187.75,187.67,11.38]
[1761835468904,50.8810043,187.75,187.63,0.67]
[1761835469080,50.8810043,187.75,187.64,11.38]
[1761835469486,50.8810043,187.75,187.65,0.67]
[1761835470491,50.8810043,187.75,187.66,0.67]
[1761835470886,20.592,187.73,187.66,0.67]
[1761835471088,20.592,187.73,187.64,11.38]
[1761835471279,4.25121586,187.75,187.64,12.05]
[1761835471280,20.592,187.71,187.64,12.05]
[1761835471989,20.592,187.71,187.61,0.67]
[1761835472303,20.592,187.71,187.58,32.0]
[1761835472497,20.592,187.69,187.59,12.03]
[1761835472695,20.592,187.68,187.58,32.67]
[1761835472906,20.592,187.67,187.58,0.67]
[1761835473104,20.592,187.67,187.47,75.81533011]
[1761835473105,20.592,187.67,187.56,0.67]
[1761835474600,47.22540629,187.67,187.55,11.36]
[1761835474795,47.22540629,187.67,187.56,0.67]
[1761835474998,20.592,187.67,187.56,0.67]
[1761835475198,3.37632055,187.74,187.57,10.32196198]
[1761835475404,4.25121586,187.75,187.57,12.32196197]
[1761835475605,29.48309984,187.78,187.59,9.78882769]
[1761835475814,29.48309984,187.78,187.61,9.78882769]
[1761835475996,7.17881378,187.78,187.63,9.78882769]
[1761835476202,46.62978844,187.75,187.64,11.36]
[1761835476594,20.592,187.72,187.64,12.03]
[1761835476893,7.17881378,187.78,187.64,12.03]
[1761835476894,20.592,187.7,187.64,12.03]
[1761835477114,20.592,187.7,187.65,11.36]
[1761835477417,20.592,187.7,187.62,0.67]
[1761835477640,20.592,187.7,187.59,9.78882769]
[1761835477913,20.592,187.69,187.59,0.67]
[1761835478112,20.592,187.69,187.58,11.36]
[1761835478314,20.592,187.69,187.58,12.03]
[1761835478492,20.592,187.69,187.59,0.67]
[1761835478687,20.592,187.67,187.59,0.67]
[1761835479617,26.82221992,187.74,187.6,10.32187673]
[1761835479798,5.54601739,187.76,187.6,10.32187673]
[1761835479799,5.54601739,187.76,187.6,9.78882769]
[1761835479989,20.592,187.73,187.61,0.72]
[1761835480323,20.592,187.69,187.62,11.36]
[1761835480530,20.592,187.69,187.61,0.72]
[1761835480703,20.592,187.69,187.62,12.08]
[1761835481014,20.592,187.69,187.63,11.36]
[1761835481221,20.592,187.69,187.62,0.72]
[1761835481418,20.592,187.69,187.63,11.36]
[1761835482627,20.592,187.69,187.64,0.72]
[1761835483218,26.03778844,187.75,187.63,11.36]
[1761835483418,20.592,187.72,187.64,0.72]
[1761835483597,46.72583902,187.72,187.63,11.36]
[1761835483797,26.82221992,187.74,187.63,11.36]
[1761835484001,26.03778844,187.75,187.63,12.08]
[1761835484217,20.592,187.7,187.61,0.72]
[1761835484521,20.592,187.7,187.64,11.36]
[1761835485499,20.592,187.68,187.61,0.72]
[1761835485821,20.592,187.67,187.58,0.72]
[1761835486021,20.592,187.67,187.61,11.34]
[1761835486317,15.33484508,187.76,187.6,11.34]
[1761835486318,20.592,187.66,187.6,11.34]
[1761835486640,20.592,187.66,187.61,0.72]
[1761835486795,20.592,187.67,187.61,0.72]
[1761835487518,47.22540629,187.67,187.56,0.72]
[1761835487706,20.592,187.64,187.58,11.34]
[1761835488120,20.592,187.64,187.58,12.06]
[1761835488310,20.592,187.64,187.58,11.34]
[1761835488511,20.592,187.65,187.58,12.06]
[1761835488726,20.592,187.63,187.58,12.06]
[1761835489211,20.592,187.68,187.59,0.72]
[1761835489419,20.592,187.66,187.59,0.72]
[1761835489814,20.592,187.65,187.59,0.72]
[1761835490708,9.78882769,187.75,187.59,0.72]
[1761835490709,20.592,187.66,187.59,0.72]
[1761835491203,20.592,187.68,187.59,0.72]
[1761835491729,26.82221992,187.74,187.59,0.72]
[1761835491934,47.34029774,187.71,187.59,0.72]
[1761835492116,47.34029774,187.71,187.6,11.34]
[1761835492312,47.34029774,187.71,187.59,0.72]
[1761835492507,47.34029774,187.71,187.55,10.32201883]
[1761835492508,47.34029774,187.71,187.61,11.34]
[1761835493017,20.592,187.71,187.61,12.06]
[1761835493227,47.51946722,187.7,187.61,11.34]
[1761835494732,20.592,187.66,187.61,12.06]
[1761835495115,20.592,187.66,187.61,11.34]
[1761835495319,20.592,187.69,187.61,12.06]
[1761835495629,20.592,187.7,187.61,11.34]
[1761835496013,47.51946722,187.7,187.61,11.34]
[1761835496633,47.51946722,187.7,187.58,0.72]
[1761835496931,20.592,187.67,187.58,0.72]
[1761835497313,20.592,187.65,187.58,0.72]
[1761835497843,20.592,187.65,187.59,11.32]
[1761835498218,20.592,187.64,187.59,11.32]
[1761835498714,20.592,187.64,187.59,12.04]
[1761835498911,20.592,187.63,187.59,11.32]
[1761835499725,9.78882769,187.71,187.59,11.32]
[1761835499918,20.592,187.64,187.59,11.32]
[1761835500126,20.592,187.64,187.57,0.72]
[1761835500315,20.592,187.64,187.58,11.32]
[1761835500517,20.592,187.62,187.51,0.72]
[1761835500818,47.13886944,187.62,187.51,0.72]
[1761835501343,47.13886944,187.62,187.5,32.0]
[1761835501545,47.13886944,187.62,187.51,0.72]
[1761835501918,47.13886944,187.62,187.5,32.0]
[1761835502317,9.78882769,187.61,187.5,32.0]
[1761835502613,20.592,187.58,187.51,12.04]
[1761835502826,20.592,187.57,187.52,0.72]
[1761835503041,20.592,187.58,187.52,0.72]
[1761835503411,20.592,187.57,187.52,0.72]
[1761835503810,20.592,187.59,187.52,0.72]
[1761835504741,20.592,187.64,187.53,10.3220757]
[1761835505039,5.89990628,187.67,187.53,0.53324801]
[1761835505219,20.592,187.62,187.54,0.72]
[1761835505411,20.592,187.62,187.55,11.32]
[1761835506316,20.592,187.62,187.55,12.04]
[1761835506511,20.592,187.62,187.56,0.72]
[1761835506733,20.592,187.62,187.55,11.32]
[1761835506932,5.89990628,187.67,187.55,11.32]
[1761835506933,20.592,187.6,187.55,11.32]
[1761835507235,20.592,187.59,187.55,11.32]
[1761835507753,26.96577565,187.79,187.56,11.04199041]
[1761835507916,26.29807148,187.76,187.56,43.04199041]
[1761835508226,20.592,187.74,187.58,9.78882769]
[1761835508428,20.592,187.72,187.58,9.78882769]
[1761835508625,20.592,187.72,187.59,12.08]
[1761835509022,26.13383902,187.72,187.6,0.7]
[1761835509236,20.592,187.68,187.6,0.7]
[1761835509950,20.592,187.68,187.61,11.36]
[1761835510145,20.592,187.7,187.61,11.36]
[1761835510541,5.67717217,187.74,187.61,11.36]
[1761835510745,20.592,187.7,187.61,11.36]
[1761835510916,20.592,187.7,187.62,0.7]
[1761835511121,20.592,187.71,187.62,0.7]
[1761835511433,20.592,187.7,187.62,0.7]
[1761835511750,20.592,187.7,187.62,12.06]
[1761835512129,20.592,187.71,187.63,0.7]
[1761835512333,20.592,187.7,187.63,0.7]
[1761835512552,20.592,187.7,187.62,11.36]
[1761835512758,20.592,187.7,187.63,0.7]
[1761835513250,20.592,187.7,187.62,11.36]
[1761835513431,20.592,187.7,187.61,0.7]
[1761835513822,20.592,187.66,187.61,0.7]
[1761835514643,20.592,187.66,187.58,0.7]
[1761835514852,20.592,187.69,187.58,12.04]
[1761835515225,20.592,187.62,187.59,0.7]
[1761835516346,11.34,187.65,187.59,0.7]
[1761835516672,0.67,187.73,187.59,0.7]
[1761835516832,11.34,187.67,187.6,10.32187673]
[1761835517034,11.34,187.67,187.61,0.72]
[1761835517751,4.67320759,187.67,187.61,12.06]
[1761835517924,5.67717217,187.74,187.61,12.06]
[1761835518128,5.67717217,187.74,187.62,0.72]
[1761835518331,2.1347565,187.73,187.62,0.72]
[1761835518538,2.1347565,187.73,187.63,9.78882769]
[1761835519028,2.1347565,187.73,187.64,1.2529354]
[1761835519428,2.1347565,187.73,187.65,0.72]
[1761835520232,2.1347565,187.73,187.66,0.53287861]
[1761835520646,2.1347565,187.73,187.67,0.72]
[1761835520824,2.1347565,187.73,187.68,11.34]
[1761835521229,2.1347565,187.73,187.69,0.72]
[1761835521439,2.1347565,187.73,187.69,12.06]
[1761835521640,2.1347565,187.73,187.69,11.34]
[1761835521841,22.7267565,187.73,187.69,11.34]
[1761835522066,22.7267565,187.73,187.69,12.06]
[1761835522237,20.592,187.72,187.69,11.34]
[1761835522929,2.1347565,187.73,187.66,0.72]
[1761835523140,2.1347565,187.73,187.67,11.32]
[1761835523336,2.1347565,187.73,187.68,11.32]
[1761835523830,20.592,187.71,187.68,11.32]
[1761835524032,20.592,187.71,187.62,0.72]
[1761835524242,0.67,187.7,187.63,11.32]
[1761835524440,20.592,187.69,187.63,11.32]
[1761835524634,20.592,187.69,187.64,11.32]
[1761835525031,20.592,187.65,187.64,11.32]
[1761835525454,20.592,187.65,187.63,0.72]
[1761835525839,20.592,187.65,187.64,11.32]
[1761835526433,21.262,187.68,187.64,11.32]
[1761835526639,20.592,187.68,187.64,11.32]
[1761835526834,11.32,187.65,187.64,11.32]
[1761835527348,20.592,187.67,187.64,12.04]
[1761835527527,11.32,187.67,187.64,11.32]
[1761835527733,20.592,187.65,187.64,11.32]
[1761835528246,32.582,187.65,187.64,11.32]
[1761835528449,32.582,187.65,187.61,11.3]
[1761835528658,32.582,187.65,187.54,0.72]
[1761835528659,0.67,187.64,187.54,0.72]
[1761835528956,0.67,187.64,187.55,11.3]
[1761835530753,20.592,187.63,187.55,11.3]
[1761835530943,31.892,187.63,187.55,11.3]
[1761835531133,0.67,187.62,187.55,11.3]
[1761835532348,20.592,187.58,187.52,0.72]
[1761835532553,20.592,187.58,187.53,11.3]
[1761835533061,20.592,187.54,187.49,0.2]
[1761835533251,0.67,187.53,187.49,0.2]
[1761835534282,6.56911557,187.53,187.49,0.2]
[1761835534573,17.6905055,187.52,187.49,0.2]
[1761835534741,45.23927739,187.52,187.49,0.2]
[1761835534942,0.67,187.51,187.49,0.2]
[1761835535170,20.592,187.5,187.49,0.2]
[1761835535338,6.56911557,187.51,187.49,0.2]
[1761835535539,0.67,187.5,187.49,0.2]
[1761835536478,54.29265361,187.5,187.49,3e-08]
[1761835537050,64.0814813,187.5,187.49,3e-08]
[1761835537268,27.6325055,187.5,187.49,3e-08]
[1761835538269,64.0814813,187.5,187.49,3e-08]
[1761835538646,70.59576213,187.5,187.49,3e-08]
[1761835538864,79.8046345,187.5,187.49,3e-08]
[1761835539048,86.15466308,187.5,187.49,3e-08]
[1761835539365,82.5933738,187.5,187.49,3e-08]
[1761835539949,77.26004047,187.5,187.49,3e-08]
[1761835540449,20.592,187.42,187.41,4e-08]
[1761835540653,9.78882769,187.45,187.39,7.09098999]
[1761835540654,20.592,187.4,187.39,4.25427336]
[1761835541356,8.54716841,187.4,187.39,4.25427336]
[1761835541550,4.25427336,187.4,187.39,4.91427336]
[1761835541768,4.26014539,187.4,187.39,4.91427336]
[1761835541972,4.25427336,187.43,187.39,4.91427336]
[1761835542145,4.25427336,187.43,187.39,16.21427336]
[1761835542347,4.25427336,187.43,187.4,0.66]
[1761835542754,20.592,187.41,187.4,0.66]
[1761835543064,20.592,187.4,187.39,15.55427336]
[1761835544461,20.592,187.4,187.39,4.25427336]
[1761835547566,21.252,187.4,187.36,0.2]
[1761835547852,20.592,187.4,187.36,0.2]
[1761835548670,26.45664649,187.38,187.36,0.2]
[1761835549153,27.11664649,187.38,187.36,0.2]
[1761835550169,20.592,187.35,187.29,0.19997869]
[1761835550971,20.592,187.34,187.29,0.19997869]
[1761835551698,31.892,187.33,187.29,0.19997869]
[1761835552850,58.53987298,187.33,187.29,0.19997869]
[1761835553053,32.552,187.33,187.29,0.19997869]
[1761835553252,20.592,187.3,187.29,0.19997869]
[1761835554279,20.592,187.31,187.29,0.19997869]
[1761835554585,11.3,187.33,187.29,0.85997869]
[1761835555182,11.3,187.33,187.3,0.66]
[1761835555364,26.45664649,187.38,187.3,0.66]
[1761835555567,20.592,187.35,187.3,0.66]
[1761835555868,20.592,187.34,187.3,0.66]
[1761835556377,20.592,187.34,187.29,0.19997869]
[1761835557162,20.592,187.34,187.29,0.85997869]
[1761835557359,20.592,187.34,187.29,0.19997869]
[1761835559163,20.592,187.33,187.29,0.85997869]
[1761835559584,31.892,187.33,187.29,0.85997869]
[1761835560268,31.892,187.33,187.29,0.19997869]
[1761835560864,31.892,187.33,187.29,0.85997869]
[1761835561392,31.892,187.33,187.29,0.19997869]
[1761835561866,31.892,187.33,187.29,0.85997869]
[1761835562358,31.892,187.33,187.29,0.19997869]
[1761835563083,59.28295839,187.33,187.29,0.19997869]
[1761835563408,63.92611957,187.33,187.29,0.19997869]
[1761835563579,20.592,187.3,187.29,0.19997869]
[1761835564183,26.83154931,187.4,187.29,0.85997869]
[1761835564384,26.40029444,187.42,187.29,0.85997869]
[1761835564583,20.592,187.33,187.3,0.66]
[1761835564784,20.592,187.33,187.31,11.3]
[1761835565211,20.592,187.34,187.32,0.66]
[1761835566233,6.3705055,187.41,187.32,0.66]
[1761835566519,4.37364077,187.43,187.33,10.32264501]
[1761835566751,20.592,187.42,187.33,11.3]
[1761835566889,20.592,187.42,187.34,0.66]
[1761835568194,20.592,187.42,187.35,9.78882769]
[1761835568812,4.30415467,187.43,187.36,0.66]
[1761835569015,20.592,187.44,187.36,0.66]
[1761835570019,24.96287622,187.44,187.36,0.66]
[1761835570224,0.66,187.43,187.33,11.3]
[1761835570384,20.592,187.41,187.34,0.68]
[1761835571035,20.592,187.42,187.34,0.68]
[1761835571210,20.592,187.41,187.34,0.68]
[1761835571535,20.592,187.4,187.34,0.68]
[1761835572235,20.592,187.4,187.35,9.78882769]
[1761835572620,20.592,187.4,187.36,0.68]
[1761835573134,20.592,187.41,187.36,0.68]
[1761835573643,31.13509302,187.44,187.36,0.68]
[1761835573644,20.592,187.4,187.36,0.68]
[1761835573829,20.592,187.37,187.36,0.68]
[1761835574137,26.45664649,187.38,187.36,0.68]
[1761835574433,20.592,187.39,187.36,0.68]
[1761835574434,20.592,187.37,187.36,0.68]
[1761835574933,20.592,187.36,187.33,11.3]
[1761835575137,20.592,187.36,187.34,11.3]
[1761835575441,0.66,187.42,187.34,11.3]
[1761835575442,47.42354931,187.4,187.34,11.99]
[1761835575627,47.42354931,187.4,187.29,0.19997869]
[1761835575628,20.592,187.39,187.29,0.19997869]
[1761835575829,47.04864649,187.38,187.29,0.19997869]
[1761835576036,26.94619665,187.36,187.29,0.19997869]
[1761835576229,20.592,187.33,187.29,0.19997869]
[1761835576746,0.67,187.32,187.29,0.19997869]
[1761835576929,20.592,187.33,187.29,0.19997869]
[1761835577230,21.262,187.33,187.29,0.19997869]
[1761835577738,20.592,187.32,187.29,0.19997869]
[1761835578751,0.67,187.31,187.29,0.19997869]
[1761835579735,20.592,187.28,187.26,11.98998934]
[1761835579913,20.592,187.28,187.27,0.69]
[1761835580114,20.592,187.34,187.27,0.69]
[1761835580324,4.64316118,187.37,187.27,0.69]
[1761835580524,26.29506682,187.39,187.28,9.78882769]
[1761835580727,31.80509302,187.44,187.3,9.78882769]
[1761835580954,38.17559852,187.44,187.3,9.78882769]
[1761835581164,11.27819793,187.44,187.32,9.78882769]
[1761835581455,11.27819793,187.44,187.33,11.3]
[1761835581790,20.592,187.41,187.33,11.99]
[1761835581929,26.40029444,187.42,187.33,11.3]
[1761835582250,20.592,187.4,187.34,0.69]
[1761835582425,20.592,187.4,187.33,11.3]
[1761835582426,20.592,187.35,187.33,11.3]
[1761835582829,20.592,187.35,187.33,11.99]
[1761835583224,20.592,187.39,187.29,9.78882769]
[1761835583446,0.67,187.38,187.3,11.3]
[1761835583634,20.592,187.34,187.3,11.3]
[1761835584039,20.592,187.34,187.31,0.69]
[1761835584435,20.592,187.35,187.31,0.69]
[1761835584730,20.592,187.35,187.3,11.3]
[1761835585246,21.262,187.34,187.26,0.69]
[1761835585447,21.262,187.34,187.27,11.3]
[1761835585671,0.67,187.33,187.27,11.3]
[1761835585840,20.592,187.31,187.27,11.99]
[1761835586478,20.592,187.31,187.27,11.3]
[1761835587946,20.592,187.33,187.28,0.69]
[1761835588271,27.61619665,187.36,187.28,0.69]
[1761835588650,20.592,187.33,187.28,0.69]
[1761835589777,6.3705055,187.38,187.28,0.69]
[1761835589953,20.592,187.35,187.28,0.69]
[1761835592148,13.91423107,187.35,187.28,0.69]
[1761835593373,6.3705055,187.38,187.29,9.78882769]
[1761835593551,9.78882769,187.4,187.3,0.69]
[1761835593759,9.78882769,187.4,187.31,9.78882769]
[1761835594267,9.78882769,187.4,187.33,9.78882769]
[1761835594452,9.78882769,187.4,187.35,9.78882769]
[1761835594659,20.592,187.37,187.35,9.78882769]
[1761835594875,9.78882769,187.4,187.36,0.69]
[1761835595453,9.78882769,187.4,187.3,0.53390282]
[1761835595754,20.592,187.37,187.31,11.99]
[1761835595954,20.592,187.35,187.32,11.3]
[1761835596653,21.262,187.35,187.32,11.3]
[1761835596862,20.592,187.35,187.32,11.3]
[1761835597775,20.592,187.35,187.29,0.69]
[1761835597980,21.262,187.34,187.3,11.3]
[1761835598183,20.592,187.32,187.28,11.3]
[1761835598680,0.67,187.31,187.28,11.3]
[1761835598854,20.592,187.26,187.24,0.2]
[1761835599693,20.592,187.28,187.24,0.2]
[1761835599993,26.9625055,187.26,187.24,0.2]
[1761835600284,6.3705055,187.26,187.24,0.2]
[1761835600868,20.592,187.27,187.24,0.2]
[1761835601069,6.3705055,187.31,187.24,0.9]
[1761835601452,6.3705055,187.31,187.25,0.7]
[1761835601669,0.7,187.35,187.25,0.7]
[1761835601876,26.03536147,187.34,187.25,0.7]
[1761835602079,26.03536147,187.34,187.24,0.2]
[1761835602080,5.34316118,187.33,187.24,0.2]
[1761835602261,20.592,187.3,187.24,0.2]
[1761835602781,31.29103416,187.33,187.24,0.2]
[1761835602782,20.592,187.31,187.24,0.2]
[1761835602982,4.64610571,187.37,187.24,0.2]
[1761835602983,21.292,187.29,187.24,0.2]
[1761835603174,24.74589794,187.29,187.24,0.2]
[1761835603366,4.15389794,187.28,187.24,0.2]
[1761835603573,20.592,187.25,187.24,0.2]
[1761835604365,21.292,187.25,187.24,0.2]
[1761835604766,20.592,187.25,187.24,0.2]
[1761835605186,13.91056149,187.25,187.24,0.9]
[1761835605483,6.3705055,187.33,187.24,0.9]
[1761835605684,6.3705055,187.33,187.25,0.7]
[1761835607175,20.592,187.3,187.25,0.7]
[1761835610887,27.64619665,187.36,187.25,0.7]
[1761835611097,29.37354097,187.36,187.25,0.7]
[1761835611302,20.592,187.33,187.25,0.7]
[1761835611489,20.592,187.33,187.26,9.78882769]
[1761835611863,20.592,187.33,187.27,0.7]
[1761835612373,20.592,187.33,187.28,9.78882769]
[1761835612581,6.3705055,187.36,187.3,9.78882769]
[1761835612789,104.1,187.42,187.31,0.7]
[1761835612790,20.592,187.33,187.31,0.7]
[1761835613491,20.592,187.37,187.31,0.7]
[1761835613673,0.7,187.39,187.29,11.3]
[1761835613882,20.592,187.35,187.29,11.3]
[1761835614478,0.7,187.34,187.29,11.3]
[1761835614666,26.9625055,187.35,187.29,11.3]
[1761835615297,26.9625055,187.35,187.29,0.7]
[1761835616821,26.9625055,187.35,187.27,11.3]
[1761835616972,0.7,187.34,187.27,12.0]
[1761835617879,0.7,187.34,187.27,11.3]
[1761835618473,20.592,187.31,187.27,11.3]
[1761835619579,20.592,187.31,187.27,12.0]
[1761835619879,20.592,187.31,187.27,11.3]
[1761835620078,20.592,187.31,187.27,12.0]
[1761835620302,20.592,187.31,187.28,0.7]
[1761835620501,20.592,187.32,187.28,0.7]
[1761835621192,20.592,187.32,187.27,11.3]
[1761835621370,21.292,187.31,187.24,0.2]
[1761835621577,20.592,187.27,187.24,0.2]
[1761835621775,0.25287776,187.27,187.24,0.2]
[1761835621991,27.28822314,187.26,187.24,0.2]
[1761835622206,9.78882769,187.25,187.24,0.2]
[1761835622376,16.85933319,187.25,187.24,0.2]
[1761835622578,6.3705055,187.25,187.24,3e-08]
[1761835622904,7.0705055,187.25,187.24,3e-08]
[1761835623106,43.11007511,187.25,187.24,3e-08]
[1761835623885,47.75618082,187.25,187.24,3e-08]
[1761835625892,50.54782831,187.25,187.24,3e-08]
[1761835627595,47.75618082,187.25,187.24,3e-08]
[1761835627792,21.5054389,187.25,187.24,3e-08]
[1761835628016,21.5054389,187.25,187.17,1.06]
[1761835628192,20.592,187.22,187.18,0.7]
[1761835628394,6.3705055,187.25,187.18,0.7]
[1761835629008,20.592,187.22,187.17,0.36]
[1761835629323,25.4766164,187.21,187.14,0.69]
[1761835630025,20.592,187.17,187.1,0.2]
[1761835630193,0.66,187.16,187.1,0.2]
[1761835630394,5.75894755,187.16,187.1,0.2]
[1761835630631,5.75894755,187.16,187.1,0.04]
[1761835630632,9.78882769,187.12,187.1,0.04]
[1761835630789,15.08475315,187.11,187.1,0.04]
[1761835631122,6.83755214,187.11,187.1,0.04]
[1761835631327,7.39755214,187.11,187.1,0.04]
[1761835631829,20.592,187.07,187.0,6.89098999]
[1761835632132,20.592,187.03,187.0,6.89098999]
[1761835632296,4.2246164,187.02,187.0,6.89098999]
[1761835632497,20.592,187.01,187.0,6.89098999]
[1761835632696,27.5225055,187.01,187.0,6.89098999]
[1761835632919,26.9625055,187.01,187.0,6.89098999]
[1761835633335,26.9625055,187.01,187.0,7.58098999]
[1761835633620,20.592,187.02,187.0,7.58098999]
[1761835633795,20.592,187.02,187.01,0.69]
[1761835634002,4.31846152,187.03,187.01,0.69]
[1761835634201,20.592,187.04,187.01,0.69]
[1761835634998,24.98215683,187.04,187.01,0.69]
[1761835635321,4.39015683,187.04,187.01,0.69]
[1761835635496,11.3,187.1,187.01,0.69]
[1761835635696,2.49727208,187.09,187.01,0.69]
[1761835635893,20.592,187.05,187.01,0.69]
[1761835636300,20.592,187.05,187.0,18.19098999]
[1761835636500,6.3705055,187.04,187.0,18.19098999]
[1761835636702,20.592,187.01,187.0,6.89098999]
[1761835637324,20.592,187.01,187.0,7.58098999]
[1761835639107,19.152,187.01,187.0,7.58098999]
[1761835639619,6.3705055,187.09,187.0,7.58098999]
[1761835639801,6.3705055,187.09,187.01,0.69]
[1761835640642,0.7,187.08,187.0,6.89098999]
[1761835640807,15.48337185,187.08,187.0,6.89098999]
[1761835641013,16.15933319,187.07,187.0,6.89098999]
[1761835641331,20.592,187.04,187.0,6.89098999]
[1761835641712,21.292,187.03,187.0,6.89098999]
[1761835642148,31.892,187.03,187.0,6.89098999]
[1761835642449,0.7,187.02,187.0,6.89098999]
[1761835642940,38.2625055,187.03,187.0,6.89098999]
[1761835643118,38.9625055,187.03,187.0,6.89098999]
[1761835643506,4.57244272,187.02,187.0,6.89098999]
[1761835644425,3.87244272,187.02,187.0,6.89098999]
[1761835644912,4.57244272,187.02,187.0,6.89098999]
[1761835645432,36.2854678,187.07,187.01,0.69]
[1761835645433,26.9625055,187.07,187.01,0.69]
[1761835645605,19.0605055,187.07,187.0,6.89098999]
[1761835645802,20.592,187.03,187.0,6.89098999]
[1761835646846,0.7,187.02,187.0,6.89098999]
[1761835647146,20.592,187.01,187.0,6.89098999]
[1761835648829,3.45468864,187.02,187.0,6.89098999]
[1761835649330,103.4,187.01,187.0,6.89098999]
[1761835649831,103.4,187.01,187.0,7.58098999]
[1761835651137,103.4,187.01,187.0,6.89098999]
[1761835651436,6.3705055,187.03,187.0,6.89098999]
[1761835652040,0.7,187.02,187.0,6.89098999]
[1761835652721,26.9625055,187.01,187.0,6.89098999]
[1761835653120,27.6625055,187.01,187.0,6.89098999]
[1761835653329,2.30917995,187.0,186.95,0.2]
[1761835653521,3.00917995,187.0,186.95,0.2]
[1761835653729,20.592,186.96,186.95,0.2]
[1761835655222,20.592,186.96,186.95,0.89]
[1761835655760,20.592,186.96,186.95,0.2]
[1761835656631,21.292,186.96,186.91,0.2]
[1761835656928,2.30917995,187.0,186.91,0.2]
[1761835656929,20.592,186.92,186.91,0.2]
[1761835657122,31.08082769,186.92,186.91,0.2]
[1761835657322,37.45133319,186.92,186.91,0.2]
[1761835657532,20.592,186.88,186.69,50.0]
[1761835657733,20.592,186.84,186.76,11.3]